[Event "Late-Titled-Tuesday-Blitz-June-18-2024"]
[Site "Chess.com"]
[Date "2024.06.18"]
[Round "7"]
[White "lamomiajunior"]
[Black "SHIVACalypso"]
[Result "0-1"]
[WhiteElo "2686"]
[BlackElo "2564"]
[TimeControl "180+1"]
[EndTime "15:18:11 PDT"]
[Termination "SHIVACalypso won on time"]

1. e4 {[%clk 0:03:00.9]} 1... e6 {[%clk 0:02:59.9]} 2. d4 {[%clk 0:03:00.7]}
2... d5 {[%clk 0:03:00.4]} 3. e5 {[%clk 0:03:01.3]} 3... c5 {[%clk 0:02:58.5]}
4. c3 {[%clk 0:03:01.7]} 4... Nc6 {[%clk 0:02:59.2]} 5. Nf3 {[%clk 0:03:02]}
5... Bd7 {[%clk 0:02:59.9]} 6. Be2 {[%clk 0:03:01.7]} 6... f6 {[%clk 0:02:59.7]}
7. O-O {[%clk 0:02:56.1]} 7... fxe5 {[%clk 0:02:59.4]} 8. dxe5 {[%clk 0:02:57]}
8... Nh6 {[%clk 0:02:58.5]} 9. Bf4 {[%clk 0:02:55]} 9... Qc7 {[%clk 0:02:55.2]}
10. Bd3 {[%clk 0:02:52.3]} 10... O-O-O {[%clk 0:02:54.5]} 11. a3 {[%clk
0:02:49.2]} 11... Nf5 {[%clk 0:02:55]} 12. b4 {[%clk 0:02:41.5]} 12... c4 {[%clk
0:02:54.2]} 13. Bc2 {[%clk 0:02:41.7]} 13... h6 {[%clk 0:02:52]} 14. h3 {[%clk
0:02:41.6]} 14... g5 {[%clk 0:02:51.5]} 15. Bh2 {[%clk 0:02:42.2]} 15... Nh4
{[%clk 0:02:46.3]} 16. Nxh4 {[%clk 0:02:41.2]} 16... gxh4 {[%clk 0:02:47.2]} 17.
Qe1 {[%clk 0:02:00.1]} 17... Bg7 {[%clk 0:02:39]} 18. f4 {[%clk 0:02:00.1]}
18... d4 {[%clk 0:02:39.7]} 19. Be4 {[%clk 0:01:48]} 19... d3 {[%clk 0:02:33.8]}
20. Nd2 {[%clk 0:01:47.6]} 20... Ne7 {[%clk 0:02:33.9]} 21. f5 {[%clk
0:01:39.5]} 21... exf5 {[%clk 0:02:16.4]} 22. Bf3 {[%clk 0:01:35.4]} 22... Be6
{[%clk 0:02:12.8]} 23. Kh1 {[%clk 0:01:28.1]} 23... Nd5 {[%clk 0:02:06.2]} 24.
Qxh4 {[%clk 0:01:20.6]} 24... Bxe5 {[%clk 0:01:58.8]} 25. Bxe5 {[%clk
0:01:19.9]} 25... Qxe5 {[%clk 0:01:59.4]} 26. Rae1 {[%clk 0:01:19.3]} 26... Ne3
{[%clk 0:01:54.6]} 27. Rf2 {[%clk 0:00:11]} 27... f4 {[%clk 0:01:52.9]} 28. Bd1
{[%clk 0:00:06]} 28... Rdf8 {[%clk 0:01:48.3]} 29. Bh5 {[%clk 0:00:05.6]} 29...
Rhg8 {[%clk 0:01:40.6]} 30. Bf3 {[%clk 0:00:05.6]} 30... Bd5 {[%clk 0:01:35.9]}
31. Qxh6 {[%clk 0:00:02.2]} 31... Rh8 {[%clk 0:01:31.1]} 32. Qg6 {[%clk
0:00:02.8]} 32... Rfg8 {[%clk 0:01:29.8]} 33. Bg4+ {[%clk 0:00:01.4]} 33... Kb8
{[%clk 0:01:28.8]} 0-1

[Event "Late-Titled-Tuesday-Blitz-June-18-2024"]
[Site "Chess.com"]
[Date "2024.06.18"]
[Round "7"]
[White "Andrei_Skvortsov"]
[Black "Tunahan_Makaraci"]
[Result "1-0"]
[WhiteElo "2771"]
[BlackElo "2622"]
[TimeControl "180+1"]
[EndTime "15:18:15 PDT"]
[Termination "Andrei_Skvortsov won on time"]

1. e4 {[%clk 0:03:00.9]} 1... c5 {[%clk 0:03:00.2]} 2. d4 {[%clk 0:03:01.1]}
2... cxd4 {[%clk 0:03:00.3]} 3. Qxd4 {[%clk 0:03:02]} 3... Nc6 {[%clk
0:02:58.9]} 4. Qd3 {[%clk 0:03:02]} 4... d6 {[%clk 0:02:57.8]} 5. Nc3 {[%clk
0:03:02.3]} 5... g6 {[%clk 0:02:57.7]} 6. Nf3 {[%clk 0:03:02.6]} 6... Bg7 {[%clk
0:02:58.1]} 7. Be2 {[%clk 0:03:03]} 7... Nf6 {[%clk 0:02:58.1]} 8. O-O {[%clk
0:03:03.5]} 8... O-O {[%clk 0:02:58.2]} 9. Nd5 {[%clk 0:03:04.1]} 9... Bg4
{[%clk 0:02:57.3]} 10. c3 {[%clk 0:03:04.1]} 10... Rc8 {[%clk 0:02:56.4]} 11.
Bg5 {[%clk 0:03:04]} 11... Bxf3 {[%clk 0:02:51.4]} 12. Qxf3 {[%clk 0:03:03]}
12... Nxd5 {[%clk 0:02:49.8]} 13. exd5 {[%clk 0:03:03.9]} 13... Ne5 {[%clk
0:02:49.6]} 14. Qe3 {[%clk 0:03:04.4]} 14... f6 {[%clk 0:02:33.9]} 15. Bf4
{[%clk 0:03:03.6]} 15... b6 {[%clk 0:02:32.4]} 16. Rfe1 {[%clk 0:02:59.5]} 16...
Rf7 {[%clk 0:02:29.5]} 17. Bg3 {[%clk 0:02:59.1]} 17... f5 {[%clk 0:02:24.2]}
18. f4 {[%clk 0:02:55.9]} 18... Nc4 {[%clk 0:02:21.4]} 19. Qc1 {[%clk
0:02:55.7]} 19... Qc7 {[%clk 0:02:04.9]} 20. Bf2 {[%clk 0:02:53.7]} 20... Na5
{[%clk 0:01:31.7]} 21. Qd1 {[%clk 0:02:50.1]} 21... Nb7 {[%clk 0:01:29.4]} 22.
Ba6 {[%clk 0:02:48.8]} 22... Re8 {[%clk 0:01:25.5]} 23. Qe2 {[%clk 0:02:45.8]}
23... Nc5 {[%clk 0:01:24.5]} 24. Bb5 {[%clk 0:02:46.3]} 24... Rc8 {[%clk
0:01:19.2]} 25. Rad1 {[%clk 0:02:46.8]} 25... Ne4 {[%clk 0:01:18.3]} 26. Be3
{[%clk 0:02:47.4]} 26... h6 {[%clk 0:00:35.2]} 27. g3 {[%clk 0:02:46.6]} 27...
Kh7 {[%clk 0:00:34.3]} 28. Kg2 {[%clk 0:02:46.9]} 28... Rg8 {[%clk 0:00:34]} 29.
Bd3 {[%clk 0:02:46.1]} 29... Nc5 {[%clk 0:00:32.5]} 30. Bb1 {[%clk 0:02:45.6]}
30... Nd7 {[%clk 0:00:29.7]} 31. Bg1 {[%clk 0:02:39.8]} 31... Nf6 {[%clk
0:00:29.1]} 32. Qe6 {[%clk 0:02:39.4]} 32... Rgf8 {[%clk 0:00:27.2]} 33. Re2
{[%clk 0:02:35.5]} 33... Qc4 {[%clk 0:00:26.2]} 34. Rd4 {[%clk 0:02:19.7]} 34...
Qb5 {[%clk 0:00:22.2]} 35. a4 {[%clk 0:02:16]} 35... Qb3 {[%clk 0:00:18.9]} 36.
Bc2 {[%clk 0:02:07.3]} 36... Qxb2 {[%clk 0:00:11.6]} 37. Bxf5 {[%clk 0:02:07.7]}
37... Qxc3 {[%clk 0:00:11.4]} 38. Bb1 {[%clk 0:02:07.1]} 38... Qc1 {[%clk
0:00:05.5]} 39. Bd3 {[%clk 0:01:58.1]} 39... Qc3 {[%clk 0:00:04.5]} 40. g4
{[%clk 0:01:55.3]} 40... Kh8 {[%clk 0:00:04]} 41. Bxg6 {[%clk 0:01:53.8]} 41...
Ng8 {[%clk 0:00:01]} 42. Rd3 {[%clk 0:01:42.7]} 1-0

[Event "Late-Titled-Tuesday-Blitz-June-18-2024"]
[Site "Chess.com"]
[Date "2024.06.18"]
[Round "7"]
[White "katharinareinecke"]
[Black "cakeuvdort"]
[Result "1-0"]
[WhiteElo "2049"]
[BlackElo "2308"]
[TimeControl "180+1"]
[EndTime "15:18:15 PDT"]
[Termination "katharinareinecke won on time"]

1. d4 {[%clk 0:03:00.9]} 1... Nf6 {[%clk 0:02:55.4]} 2. Nf3 {[%clk 0:03:00.4]}
2... g6 {[%clk 0:02:54.2]} 3. g3 {[%clk 0:03:00.5]} 3... Bg7 {[%clk 0:02:54.6]}
4. Bg2 {[%clk 0:03:00.7]} 4... O-O {[%clk 0:02:55.3]} 5. O-O {[%clk 0:02:54.2]}
5... d5 {[%clk 0:02:54.2]} 6. c4 {[%clk 0:02:53.4]} 6... c6 {[%clk 0:02:53.5]}
7. Nc3 {[%clk 0:02:52.5]} 7... Bf5 {[%clk 0:02:50.7]} 8. b3 {[%clk 0:02:48.9]}
8... Ne4 {[%clk 0:02:49.9]} 9. Bb2 {[%clk 0:02:43]} 9... a5 {[%clk 0:02:48.1]}
10. Nh4 {[%clk 0:02:35]} 10... Nxc3 {[%clk 0:02:45.3]} 11. Bxc3 {[%clk
0:02:30.6]} 11... Be6 {[%clk 0:02:44.6]} 12. cxd5 {[%clk 0:02:21.5]} 12... cxd5
{[%clk 0:02:39]} 13. Nf3 {[%clk 0:02:12.4]} 13... Nc6 {[%clk 0:02:37.2]} 14. Ne5
{[%clk 0:02:09.8]} 14... Nxe5 {[%clk 0:02:15.9]} 15. dxe5 {[%clk 0:02:09.3]}
15... a4 {[%clk 0:02:03.4]} 16. Bd4 {[%clk 0:02:02.1]} 16... Qd7 {[%clk
0:01:48.2]} 17. Qd3 {[%clk 0:01:52.5]} 17... Rfc8 {[%clk 0:01:31.8]} 18. Rfc1
{[%clk 0:01:49.6]} 18... b5 {[%clk 0:01:21.6]} 19. f4 {[%clk 0:01:46.2]} 19...
Bf5 {[%clk 0:01:19.3]} 20. Qe3 {[%clk 0:01:40.8]} 20... e6 {[%clk 0:01:15.5]}
21. h3 {[%clk 0:01:37.2]} 21... h5 {[%clk 0:01:15]} 22. Kh2 {[%clk 0:01:34]}
22... Bf8 {[%clk 0:00:58.8]} 23. Bf3 {[%clk 0:01:33.1]} 23... Ba3 {[%clk
0:00:53.1]} 24. Rxc8+ {[%clk 0:01:30.1]} 24... Rxc8 {[%clk 0:00:54]} 25. g4
{[%clk 0:01:28]} 25... hxg4 {[%clk 0:00:54.9]} 26. hxg4 {[%clk 0:01:23.2]} 26...
Bc2 {[%clk 0:00:20.4]} 27. bxa4 {[%clk 0:01:21.1]} 27... b4 {[%clk 0:00:10.6]}
28. Kg3 {[%clk 0:01:16.7]} 28... Qxa4 {[%clk 0:00:01.9]} 29. Rh1 {[%clk
0:01:15.5]} 29... Kg7 {[%clk 0:00:01.3]} 30. f5 {[%clk 0:01:13.4]} 1-0

[Event "Late-Titled-Tuesday-Blitz-June-18-2024"]
[Site "Chess.com"]
[Date "2024.06.18"]
[Round "7"]
[White "RebecaJimnz"]
[Black "JEHUBNER"]
[Result "1-0"]
[WhiteElo "2277"]
[BlackElo "2087"]
[TimeControl "180+1"]
[EndTime "15:18:22 PDT"]
[Termination "RebecaJimnz won by resignation"]

1. e4 {[%clk 0:03:00.9]} 1... c5 {[%clk 0:02:49.9]} 2. Nc3 {[%clk 0:03:00.4]}
2... Nc6 {[%clk 0:02:48.7]} 3. g3 {[%clk 0:03:00.8]} 3... e6 {[%clk 0:02:45.3]}
4. Bg2 {[%clk 0:03:01.3]} 4... d6 {[%clk 0:02:45.8]} 5. d3 {[%clk 0:03:01.5]}
5... Nf6 {[%clk 0:02:46.3]} 6. Be3 {[%clk 0:03:00.5]} 6... a6 {[%clk 0:02:42.6]}
7. h3 {[%clk 0:03:00.3]} 7... Be7 {[%clk 0:02:42.8]} 8. f4 {[%clk 0:03:00.2]}
8... Qc7 {[%clk 0:02:35.8]} 9. Nf3 {[%clk 0:03:00.2]} 9... Bd7 {[%clk
0:02:33.9]} 10. O-O {[%clk 0:02:59.9]} 10... O-O {[%clk 0:02:33.7]} 11. g4
{[%clk 0:02:56.6]} 11... Ne8 {[%clk 0:02:22.3]} 12. f5 {[%clk 0:02:53.7]} 12...
Ne5 {[%clk 0:02:05.5]} 13. Nxe5 {[%clk 0:02:32.7]} 13... dxe5 {[%clk 0:02:00.8]}
14. g5 {[%clk 0:02:31.6]} 14... f6 {[%clk 0:01:55.1]} 15. g6 {[%clk 0:02:25.8]}
15... exf5 {[%clk 0:01:38.4]} 16. gxh7+ {[%clk 0:02:18.6]} 16... Kh8 {[%clk
0:01:38]} 17. exf5 {[%clk 0:02:17.5]} 17... Nd6 {[%clk 0:01:35.6]} 18. Nd5
{[%clk 0:02:05]} 18... Qd8 {[%clk 0:01:32.9]} 19. Be4 {[%clk 0:02:03.5]} 19...
Nxe4 {[%clk 0:01:23.3]} 20. dxe4 {[%clk 0:02:04.4]} 20... Be8 {[%clk 0:01:22.1]}
21. Kh2 {[%clk 0:02:03.1]} 21... Bf7 {[%clk 0:01:18.7]} 22. c4 {[%clk
0:02:02.3]} 22... Bxd5 {[%clk 0:01:18.2]} 23. cxd5 {[%clk 0:02:02.2]} 23... Bd6
{[%clk 0:01:16.4]} 24. Rg1 {[%clk 0:01:59.9]} 24... Qe7 {[%clk 0:01:09.2]} 25.
Rg6 {[%clk 0:01:56.1]} 25... Rf7 {[%clk 0:01:04.9]} 26. Qh5 {[%clk 0:01:50.1]}
26... b5 {[%clk 0:00:59.5]} 27. Rag1 {[%clk 0:01:49.3]} 27... Qc7 {[%clk
0:00:54.1]} 28. Bh6 {[%clk 0:01:44.1]} 28... Bf8 {[%clk 0:00:52.2]} 29. d6
{[%clk 0:01:18.2]} 29... Qb7 {[%clk 0:00:48]} 30. R6g4 {[%clk 0:00:59.6]} 30...
Rd8 {[%clk 0:00:48.1]} 31. Be3 {[%clk 0:00:57.6]} 31... Bxd6 {[%clk 0:00:41.3]}
32. Rd1 {[%clk 0:00:48.4]} 32... Be7 {[%clk 0:00:37]} 33. Qxf7 {[%clk
0:00:47.2]} 1-0

[Event "Late-Titled-Tuesday-Blitz-June-18-2024"]
[Site "Chess.com"]
[Date "2024.06.18"]
[Round "7"]
[White "cthulhuuu"]
[Black "protectiago"]
[Result "1-0"]
[WhiteElo "2390"]
[BlackElo "2148"]
[TimeControl "180+1"]
[EndTime "15:18:24 PDT"]
[Termination "cthulhuuu won on time"]

1. e4 {[%clk 0:03:00.2]} 1... e5 {[%clk 0:02:59.5]} 2. Nf3 {[%clk 0:03:00.8]}
2... Nc6 {[%clk 0:02:59.6]} 3. Bb5 {[%clk 0:03:01.4]} 3... a6 {[%clk 0:02:59.6]}
4. Bxc6 {[%clk 0:03:01.7]} 4... dxc6 {[%clk 0:02:58.8]} 5. O-O {[%clk
0:03:02.6]} 5... Bg4 {[%clk 0:02:58.5]} 6. h3 {[%clk 0:03:03]} 6... h5 {[%clk
0:02:59.1]} 7. d3 {[%clk 0:03:03.8]} 7... Qf6 {[%clk 0:02:59.3]} 8. Nbd2 {[%clk
0:03:04.4]} 8... Ne7 {[%clk 0:02:59.4]} 9. Re1 {[%clk 0:03:05.3]} 9... Ng6
{[%clk 0:02:58.7]} 10. d4 {[%clk 0:03:05.9]} 10... Bd6 {[%clk 0:02:45.6]} 11.
hxg4 {[%clk 0:03:06.1]} 11... hxg4 {[%clk 0:02:43.6]} 12. Nh2 {[%clk 0:03:06.8]}
12... Rxh2 {[%clk 0:02:41.4]} 13. Qxg4 {[%clk 0:03:07.3]} 13... Qh4 {[%clk
0:02:40.3]} 14. Qxh4 {[%clk 0:03:07.7]} 14... Rxh4 {[%clk 0:02:40.6]} 15. Nf3
{[%clk 0:03:08.3]} 15... Rh5 {[%clk 0:02:26]} 16. g3 {[%clk 0:03:07.5]} 16... f6
{[%clk 0:02:13]} 17. Kg2 {[%clk 0:03:00.8]} 17... O-O-O {[%clk 0:02:09.4]} 18.
dxe5 {[%clk 0:03:01.1]} 18... Nxe5 {[%clk 0:02:07.7]} 19. Nxe5 {[%clk
0:03:00.9]} 19... Bxe5 {[%clk 0:02:07.6]} 20. f4 {[%clk 0:02:44]} 20... Bd4
{[%clk 0:01:49.1]} 21. Rd1 {[%clk 0:02:44.1]} 21... Rd6 {[%clk 0:01:20.6]} 22.
c3 {[%clk 0:02:33.1]} 22... Bb6 {[%clk 0:01:17.7]} 23. Bd2 {[%clk 0:02:27.2]}
23... Rd3 {[%clk 0:00:54.3]} 24. Be1 {[%clk 0:02:23.6]} 24... Re3 {[%clk
0:00:38.8]} 25. Rd2 {[%clk 0:02:23.9]} 25... Rxe4 {[%clk 0:00:31.2]} 26. Rad1
{[%clk 0:02:24.3]} 26... Kb8 {[%clk 0:00:24]} 27. Bf2 {[%clk 0:01:58.1]} 27...
Bxf2 {[%clk 0:00:20]} 28. Rxf2 {[%clk 0:01:59]} 28... Rd5 {[%clk 0:00:17.8]} 29.
Rfd2 {[%clk 0:01:58.2]} 29... Rxd2+ {[%clk 0:00:15]} 30. Rxd2 {[%clk 0:01:59.1]}
30... Re7 {[%clk 0:00:14.4]} 31. Kf3 {[%clk 0:01:58.1]} 31... Kc8 {[%clk
0:00:14.3]} 32. Kg4 {[%clk 0:01:58.4]} 32... g6 {[%clk 0:00:13.7]} 33. f5 {[%clk
0:01:57.8]} 33... g5 {[%clk 0:00:13.5]} 34. Kh5 {[%clk 0:01:57.6]} 34... Re3
{[%clk 0:00:12.2]} 35. g4 {[%clk 0:01:50.8]} 35... Re8 {[%clk 0:00:07]} 36. Kg6
{[%clk 0:01:50.8]} 36... Re4 {[%clk 0:00:07]} 37. Rg2 {[%clk 0:01:49.5]} 37...
Kd7 {[%clk 0:00:03.1]} 38. Kxf6 {[%clk 0:01:49.9]} 38... Ke8 {[%clk 0:00:02.4]}
39. Kxg5 {[%clk 0:01:50]} 39... Kf7 {[%clk 0:00:03]} 40. Rd2 {[%clk 0:01:49.8]}
40... Re8 {[%clk 0:00:01.3]} 41. Rd7+ {[%clk 0:01:49.1]} 41... Re7 {[%clk
0:00:01.3]} 42. Rxe7+ {[%clk 0:01:49.3]} 42... Kxe7 {[%clk 0:00:01]} 43. Kg6
{[%clk 0:01:49.7]} 43... Kf8 {[%clk 0:00:01.2]} 44. Kf6 {[%clk 0:01:50.2]} 44...
b6 {[%clk 0:00:01.3]} 45. g5 {[%clk 0:01:50.8]} 45... c5 {[%clk 0:00:01.6]} 46.
g6 {[%clk 0:01:51.5]} 1-0

[Event "Late-Titled-Tuesday-Blitz-June-18-2024"]
[Site "Chess.com"]
[Date "2024.06.18"]
[Round "7"]
[White "CFalcons8"]
[Black "Oleg_Papayan"]
[Result "1-0"]
[WhiteElo "2444"]
[BlackElo "2513"]
[TimeControl "180+1"]
[EndTime "15:18:28 PDT"]
[Termination "CFalcons8 won by resignation"]

1. d4 {[%clk 0:03:00.9]} 1... d5 {[%clk 0:03:00]} 2. c4 {[%clk 0:03:00.8]} 2...
dxc4 {[%clk 0:03:00.9]} 3. Nf3 {[%clk 0:02:57.4]} 3... Nf6 {[%clk 0:03:01.4]} 4.
e3 {[%clk 0:02:57.2]} 4... e6 {[%clk 0:03:01.4]} 5. Bxc4 {[%clk 0:02:56.4]} 5...
c5 {[%clk 0:03:02.1]} 6. O-O {[%clk 0:02:55]} 6... a6 {[%clk 0:03:02.7]} 7. a4
{[%clk 0:02:54]} 7... Nc6 {[%clk 0:03:02.6]} 8. b3 {[%clk 0:02:49.3]} 8... cxd4
{[%clk 0:03:00.3]} 9. exd4 {[%clk 0:02:50.2]} 9... Be7 {[%clk 0:02:58.8]} 10.
Bb2 {[%clk 0:02:48.3]} 10... O-O {[%clk 0:02:58.7]} 11. Nbd2 {[%clk 0:02:47.6]}
11... b6 {[%clk 0:02:52]} 12. Rc1 {[%clk 0:02:41.7]} 12... Bb7 {[%clk
0:02:51.7]} 13. Qe2 {[%clk 0:02:38.7]} 13... Nd5 {[%clk 0:02:38.9]} 14. Rfd1
{[%clk 0:02:35.7]} 14... Nf4 {[%clk 0:02:29.6]} 15. Qe3 {[%clk 0:02:28.9]} 15...
Nd5 {[%clk 0:02:21.3]} 16. Qe1 {[%clk 0:02:21.5]} 16... Bb4 {[%clk 0:02:14.9]}
17. Ne5 {[%clk 0:02:18.6]} 17... Na5 {[%clk 0:02:01.2]} 18. Qe2 {[%clk
0:02:07.4]} 18... Nf4 {[%clk 0:01:59.3]} 19. Qg4 {[%clk 0:02:03.6]} 19... Ng6
{[%clk 0:01:56.3]} 20. Ndf3 {[%clk 0:01:53.8]} 20... Nxc4 {[%clk 0:01:51.3]} 21.
bxc4 {[%clk 0:01:49.2]} 21... f5 {[%clk 0:01:34.9]} 22. Qg3 {[%clk 0:01:34.2]}
22... Nxe5 {[%clk 0:01:21]} 23. Nxe5 {[%clk 0:01:30.6]} 23... Qe7 {[%clk
0:01:13.4]} 24. d5 {[%clk 0:01:28]} 24... exd5 {[%clk 0:01:13.3]} 25. cxd5
{[%clk 0:01:28.9]} 25... Bd6 {[%clk 0:01:09.4]} 26. f4 {[%clk 0:01:23.1]} 26...
Rad8 {[%clk 0:01:06.2]} 27. Nc6 {[%clk 0:01:04]} 27... Qf7 {[%clk 0:00:55]} 28.
Nxd8 {[%clk 0:01:02.3]} 28... Rxd8 {[%clk 0:00:55.1]} 29. Bd4 {[%clk 0:00:59]}
29... b5 {[%clk 0:00:34.3]} 30. axb5 {[%clk 0:00:57.7]} 30... axb5 {[%clk
0:00:35.2]} 31. Bc5 {[%clk 0:00:47.9]} 31... Bxc5+ {[%clk 0:00:25.2]} 32. Rxc5
{[%clk 0:00:48.8]} 32... Rxd5 {[%clk 0:00:25.8]} 33. Rdxd5 {[%clk 0:00:46.1]}
33... Bxd5 {[%clk 0:00:26.7]} 34. Rc8+ {[%clk 0:00:45.3]} 1-0

[Event "Late-Titled-Tuesday-Blitz-June-18-2024"]
[Site "Chess.com"]
[Date "2024.06.18"]
[Round "7"]
[White "evgchess5"]
[Black "FairChess_on_YouTube"]
[Result "1/2-1/2"]
[WhiteElo "2922"]
[BlackElo "3093"]
[TimeControl "180+1"]
[EndTime "15:18:30 PDT"]
[Termination "Game drawn by repetition"]

1. e4 {[%clk 0:02:57]} 1... c5 {[%clk 0:03:00.3]} 2. Nf3 {[%clk 0:02:56.5]} 2...
Nc6 {[%clk 0:03:00.9]} 3. Bb5 {[%clk 0:02:54.4]} 3... Nf6 {[%clk 0:03:00.6]} 4.
Bxc6 {[%clk 0:02:52.8]} 4... dxc6 {[%clk 0:03:01.1]} 5. d3 {[%clk 0:02:52.9]}
5... Qc7 {[%clk 0:03:01.4]} 6. Nbd2 {[%clk 0:02:50.1]} 6... e5 {[%clk
0:03:01.1]} 7. Nc4 {[%clk 0:02:43.5]} 7... Bd6 {[%clk 0:02:57.1]} 8. b3 {[%clk
0:02:31.6]} 8... Be6 {[%clk 0:02:53]} 9. Nxd6+ {[%clk 0:02:30.4]} 9... Qxd6
{[%clk 0:02:53.8]} 10. Bb2 {[%clk 0:02:26]} 10... Nd7 {[%clk 0:02:53.9]} 11. Ng5
{[%clk 0:02:19.4]} 11... f6 {[%clk 0:02:54.1]} 12. Nxe6 {[%clk 0:02:19.2]} 12...
Qxe6 {[%clk 0:02:55]} 13. O-O {[%clk 0:02:18.4]} 13... O-O-O {[%clk 0:02:52.5]}
14. Qe2 {[%clk 0:02:09]} 14... g5 {[%clk 0:02:51.2]} 15. Rad1 {[%clk 0:02:01.7]}
15... b6 {[%clk 0:02:47.1]} 16. c3 {[%clk 0:02:01]} 16... h5 {[%clk 0:02:45.1]}
17. d4 {[%clk 0:01:52.5]} 17... Kb7 {[%clk 0:02:39]} 18. d5 {[%clk 0:01:46]}
18... cxd5 {[%clk 0:02:39.9]} 19. Rxd5 {[%clk 0:01:45.5]} 19... Nb8 {[%clk
0:02:35.8]} 20. Rfd1 {[%clk 0:01:42.6]} 20... Rxd5 {[%clk 0:02:33.3]} 21. Rxd5
{[%clk 0:01:40.1]} 21... Nc6 {[%clk 0:02:26.1]} 22. Qd3 {[%clk 0:01:40]} 22...
Kc7 {[%clk 0:02:25.5]} 23. Bc1 {[%clk 0:01:32.1]} 23... Ne7 {[%clk 0:02:23.9]}
24. c4 {[%clk 0:01:10.8]} 24... h4 {[%clk 0:02:16.1]} 25. Be3 {[%clk 0:01:05.4]}
25... h3 {[%clk 0:02:12.1]} 26. g3 {[%clk 0:01:02.4]} 26... Nxd5 {[%clk
0:02:11.7]} 27. cxd5 {[%clk 0:01:02.2]} 27... Qg4 {[%clk 0:02:09.7]} 28. Bc1
{[%clk 0:00:59.8]} 28... Rd8 {[%clk 0:02:02.8]} 29. f3 {[%clk 0:00:58.2]} 29...
Qd7 {[%clk 0:02:02.9]} 30. g4 {[%clk 0:00:57.5]} 30... Kb7 {[%clk 0:02:03.2]}
31. Be3 {[%clk 0:00:53.8]} 31... c4 {[%clk 0:01:51.7]} 32. bxc4 {[%clk
0:00:49.7]} 32... Qa4 {[%clk 0:01:51.8]} 33. Qb3 {[%clk 0:00:27.2]} 33... Qa6
{[%clk 0:01:51.1]} 34. Kf2 {[%clk 0:00:19.4]} 34... Ka8 {[%clk 0:01:51.2]} 35.
Ke2 {[%clk 0:00:13.3]} 35... Rc8 {[%clk 0:01:45.6]} 36. Kd3 {[%clk 0:00:13.5]}
36... Qa5 {[%clk 0:01:46.3]} 37. Bf2 {[%clk 0:00:13.1]} 37... Qa6 {[%clk
0:01:43.8]} 38. a4 {[%clk 0:00:13.1]} 38... Kb7 {[%clk 0:01:36.2]} 39. Qb4
{[%clk 0:00:13.1]} 39... Rc7 {[%clk 0:01:35.4]} 40. Be3 {[%clk 0:00:13.2]} 40...
Rc8 {[%clk 0:01:31.4]} 41. Kc3 {[%clk 0:00:13.3]} 41... Ka8 {[%clk 0:01:29]} 42.
Kd3 {[%clk 0:00:13.5]} 42... Kb7 {[%clk 0:01:19.6]} 43. Kc3 {[%clk 0:00:13.5]}
43... Ka8 {[%clk 0:01:20.1]} 44. Kd3 {[%clk 0:00:13.7]} 44... Kb7 {[%clk
0:01:20.6]} 1/2-1/2

[Event "Late-Titled-Tuesday-Blitz-June-18-2024"]
[Site "Chess.com"]
[Date "2024.06.18"]
[Round "7"]
[White "xakevicius91"]
[Black "Aswathchess"]
[Result "1-0"]
[WhiteElo "2651"]
[BlackElo "2770"]
[TimeControl "180+1"]
[EndTime "15:18:31 PDT"]
[Termination "xakevicius91 won by resignation"]

1. e4 {[%clk 0:03:00.9]} 1... c5 {[%clk 0:02:58.6]} 2. Nf3 {[%clk 0:03:00.9]}
2... d6 {[%clk 0:02:56.6]} 3. Bc4 {[%clk 0:02:57.5]} 3... Nf6 {[%clk 0:02:54.9]}
4. Qe2 {[%clk 0:02:56.8]} 4... e6 {[%clk 0:02:54.9]} 5. O-O {[%clk 0:02:54.5]}
5... Be7 {[%clk 0:02:54.7]} 6. c3 {[%clk 0:02:54.5]} 6... O-O {[%clk 0:02:54.6]}
7. Bb3 {[%clk 0:02:54.8]} 7... Nc6 {[%clk 0:02:52.6]} 8. d4 {[%clk 0:02:54.3]}
8... cxd4 {[%clk 0:02:48.5]} 9. cxd4 {[%clk 0:02:55.2]} 9... Re8 {[%clk
0:02:27.8]} 10. Nc3 {[%clk 0:02:52.6]} 10... e5 {[%clk 0:02:27.4]} 11. dxe5
{[%clk 0:02:49.5]} 11... dxe5 {[%clk 0:02:26]} 12. Rd1 {[%clk 0:02:47.8]} 12...
Bg4 {[%clk 0:02:24.4]} 13. Rxd8 {[%clk 0:02:46.5]} 13... Raxd8 {[%clk
0:02:21.7]} 14. Be3 {[%clk 0:02:22.5]} 14... Bf8 {[%clk 0:02:15.6]} 15. h3
{[%clk 0:02:13.8]} 15... Bh5 {[%clk 0:02:14]} 16. g4 {[%clk 0:01:56.2]} 16...
Bg6 {[%clk 0:02:13.9]} 17. Bg5 {[%clk 0:01:56.2]} 17... Nd4 {[%clk 0:02:11.9]}
18. Nxd4 {[%clk 0:01:48.6]} 18... exd4 {[%clk 0:02:11.9]} 19. Bxf6 {[%clk
0:01:48.7]} 19... gxf6 {[%clk 0:02:09.7]} 20. Nd5 {[%clk 0:01:45.2]} 20... Kg7
{[%clk 0:02:10]} 21. f3 {[%clk 0:01:43.9]} 21... Bc5 {[%clk 0:02:01.4]} 22. Kg2
{[%clk 0:01:41.7]} 22... Re5 {[%clk 0:01:57.5]} 23. Qd2 {[%clk 0:01:37.5]} 23...
h5 {[%clk 0:01:51.5]} 24. Rc1 {[%clk 0:01:36.3]} 24... b6 {[%clk 0:01:51]} 25.
Bc4 {[%clk 0:01:32.1]} 25... a5 {[%clk 0:01:16.1]} 26. a3 {[%clk 0:01:26.8]}
26... hxg4 {[%clk 0:01:07.8]} 27. hxg4 {[%clk 0:01:25.8]} 27... Rh8 {[%clk
0:01:06.5]} 28. Rh1 {[%clk 0:01:20.6]} 28... Rxh1 {[%clk 0:00:59.2]} 29. Kxh1
{[%clk 0:01:21.5]} 29... Re8 {[%clk 0:00:53.8]} 30. Qf4 {[%clk 0:01:18.7]} 30...
Re6 {[%clk 0:00:50.7]} 31. Qd2 {[%clk 0:01:14.1]} 31... Re8 {[%clk 0:00:49.9]}
32. g5 {[%clk 0:01:10.9]} 32... Rh8+ {[%clk 0:00:49]} 33. Kg2 {[%clk 0:01:10.7]}
33... fxg5 {[%clk 0:00:48.9]} 34. Qxg5 {[%clk 0:01:09.2]} 34... Rh5 {[%clk
0:00:49]} 35. Qf6+ {[%clk 0:01:07]} 35... Kh7 {[%clk 0:00:49]} 36. Nf4 {[%clk
0:01:02.6]} 36... Rh6 {[%clk 0:00:46.5]} 37. Bxf7 {[%clk 0:00:48.6]} 37... Bxe4
{[%clk 0:00:45.5]} 38. Bg8+ {[%clk 0:00:46.3]} 38... Kxg8 {[%clk 0:00:45.7]} 39.
Qxh6 {[%clk 0:00:46.3]} 39... Bh7 {[%clk 0:00:43.6]} 40. Nh5 {[%clk 0:00:41]}
1-0